bitfinex/quotes_ETHUSD_20251125
["timestamp","ask_amount","ask_price","bid_price","bid_amount"]
[1764086990124,0.221,2892.2,2891.5,0.9129]
[1764086990354,0.1449,2892.5,2891.6,10.37487894]
[1764086990539,0.1449,2892.5,2891.6,10.82997894]
[1764086990741,4.3838275,2893.7,2891.7,0.4551]
[1764086990742,0.221,2892.4,2891.7,0.4551]
[1764086990966,0.221,2892.4,2892.0,0.1989]
[1764086991130,0.4624,2893.2,2892.0,0.1989]
[1764086991330,0.72559411,2893.5,2892.0,0.1989]
[1764086991331,0.72559411,2893.3,2892.3,0.6676]
[1764086991529,0.221,2893.2,2892.4,0.4551]
[1764086992190,0.1823,2893.8,2893.1,4.12409994]
[1764086992389,0.4033,2893.8,2893.1,3.45649994]
[1764086992691,0.8657,2893.8,2892.7,0.4551]
[1764086992891,0.72559411,2893.7,2892.5,6.91443388]
[1764086993080,1.18799411,2893.7,2892.5,3.45721694]
[1764086993264,0.4624,2893.6,2892.5,6.91443388]
[1764086993464,0.49358449,2893.6,2892.5,6.91443388]
[1764086993663,0.4624,2893.6,2892.3,3.65628322]
[1764086993875,0.43668849,2893.5,2892.1,6.9153902]
[1764086994062,0.43668849,2893.5,2892.1,7.3704902]
[1764086994264,0.4624,2893.4,2892.2,0.4551]
[1764086994464,0.221,2893.3,2892.2,0.4551]
[1764086995089,0.94659411,2893.3,2892.2,0.4551]
[1764086995293,1.40899411,2893.3,2892.2,0.4551]
[1764086995669,0.4624,2893.3,2892.2,0.4551]
[1764086995914,0.221,2893.2,2892.2,0.4551]
[1764086996507,0.72559411,2893.6,2893.1,0.1989]
[1764086996673,0.221,2893.5,2893.1,0.6676]
[1764086996865,0.221,2893.5,2892.6,0.4551]
[1764086997665,0.221,2893.5,2893.4,0.6676]
[1764086998270,0.221,2893.5,2893.4,4.57884156]
[1764086998612,0.1449,2894.1,2893.5,3.45602211]
[1764086998897,0.87049411,2894.1,2893.4,3.45611607]
[1764086999079,0.603,2894.1,2893.4,6.91225763]
[1764086999479,1.32859411,2894.1,2893.4,3.45611607]
[1764086999720,1.32859411,2894.1,2893.4,6.91225763]
[1764087000311,0.94659411,2894.2,2893.4,0.4636]
[1764087000516,0.221,2894.2,2893.5,0.4636]
[1764087000827,0.221,2894.2,2894.1,0.4551]
[1764087001001,0.221,2894.8,2894.1,0.4551]
[1764087001198,0.92802465,2895.3,2894.1,0.9187]
[1764087001393,0.221,2895.4,2894.7,0.4551]
[1764087001589,0.4581,2895.6,2894.2,0.4636]
[1764087001590,0.48928449,2895.6,2894.2,0.4636]
[1764087001824,0.6791,2895.5,2894.2,0.4636]
[1764087002010,0.221,2895.5,2894.3,0.405504]
[1764087002324,0.221,2895.5,2894.5,6.90965624]
[1764087002501,0.221,2895.5,2894.6,0.4636]
[1764087002700,0.73907293,2895.8,2895.4,0.6381]
[1764087002900,0.1823,2896.5,2895.5,0.9187]
[1764087003103,0.03118449,2896.4,2895.0,0.183]
[1764087003325,1.37921633,2896.5,2895.0,0.183]
[1764087003487,1.19638233,2896.4,2895.0,0.6466]
[1764087004121,0.221,2896.3,2895.1,0.4636]
[1764087004333,0.94659411,2896.3,2895.2,10.36197843]
[1764087004553,7.85195695,2896.3,2895.1,0.4636]
[1764087004834,7.85195695,2896.3,2895.1,3.91771024]
[1764087004835,0.48928449,2896.2,2895.1,3.91771024]
[1764087005124,0.221,2896.3,2895.4,4.58271047]
[1764087005327,0.221,2896.3,2896.2,0.4551]
[1764087005500,0.221,2896.6,2896.2,0.9187]
[1764087005701,0.002,2896.4,2896.2,0.9187]
[1764087005907,0.002,2896.4,2895.8,0.4636]
[1764087006331,0.002,2896.4,2895.9,10.35947373]
[1764087006735,0.002,2896.4,2896.3,0.4551]
[1764087007031,0.002,2896.4,2896.3,0.9187]
[1764087007198,0.002,2896.4,2896.3,1.324204]
[1764087007604,0.002,2896.4,2896.3,2.14979811]
[1764087008255,0.002,2896.4,2896.3,2.04979811]
[1764087008395,0.002,2896.4,2896.3,5.72347911]
[1764087008595,0.002,2896.4,2896.3,3.452681]
[1764087008808,0.002,2896.4,2896.3,4.776885]
[1764087009209,0.002,2896.4,2896.3,4.876885]
[1764087009410,0.002,2896.4,2896.3,4.776885]
[1764087009701,0.002,2896.4,2896.3,4.997885]
[1764087010296,0.002,2896.4,2896.3,5.097885]
[1764087010732,0.002,2896.4,2896.3,4.776885]
[1764087011644,0.002,2896.4,2896.3,4.876885]
[1764087011844,0.002,2896.4,2896.3,3.452681]
[1764087012022,0.002,2896.4,2896.3,4.371381]
[1764087012201,0.002,2896.4,2896.3,4.776885]
[1764087012403,0.002,2897.0,2896.7,0.405504]
[1764087012642,0.002,2897.4,2896.9,5.54331447]
[1764087012941,0.002,2897.4,2897.3,5.22081047]
[1764087013312,0.002,2897.4,2897.3,1.1017]
[1764087013706,0.002,2897.4,2897.3,6.81550858]
[1764087014519,0.002,2897.4,2897.3,10.26699789]
[1764087014718,0.002,2897.4,2897.3,9.86149389]
[1764087015145,0.002,2897.4,2897.0,0.183]
[1764087015319,0.002,2897.4,2896.7,3.85617595]
[1764087015520,0.002,2897.4,2896.7,0.8676]
[1764087015834,0.002,2897.4,2896.7,0.6466]
[1764087016007,0.4601,2897.4,2896.6,6.90464682]
[1764087016540,0.4601,2897.4,2896.4,6.9051236]
[1764087016840,3.91147801,2897.4,2896.4,10.3576854]
[1764087017046,0.6811,2897.4,2896.4,10.3576854]
[1764087017412,0.223,2897.4,2896.5,0.4636]
[1764087017923,0.6811,2897.4,2896.5,0.4636]
[1764087018936,0.6811,2897.4,2896.6,6.90464682]
[1764087019760,0.4581,2897.3,2896.2,6.90560044]
[1764087019915,0.4581,2897.3,2896.3,0.72559411]
[1764087020113,0.002,2897.4,2896.5,4.58271047]
[1764087020331,0.002,2897.4,2897.3,0.182]
[1764087020826,0.002,2897.4,2897.1,0.182]
[1764087021026,0.002,2897.4,2897.2,6.90321688]
[1764087021216,0.002,2897.4,2897.2,3.45160844]
[1764087021414,0.002,2897.4,2897.2,6.90321688]
[1764087022256,0.002,2897.7,2897.3,6.85280858]
[1764087022426,0.002,2898.0,2897.9,0.505504]
[1764087022633,0.002,2899.0,2898.2,0.405504]
[1764087022877,0.002,2899.0,2898.3,6.46380858]
[1764087023081,0.002,2899.0,2898.3,10.36410703]
[1764087024155,0.002,2899.0,2898.3,5.68139656]
[1764087024358,0.0004,2898.4,2898.3,5.68139656]
[1764087025080,0.0004,2898.4,2898.3,4.17589256]
[1764087025576,0.0004,2898.4,2898.3,3.45029845]
[1764087026935,0.0663,2898.4,2898.1,3.4505064]
[1764087027134,0.0663,2898.4,2897.8,7.62738167]
[1764087027369,0.0663,2898.4,2897.8,11.07827545]
[1764087027543,0.0663,2898.4,2897.8,7.62738167]
[1764087027740,0.0663,2898.4,2897.8,6.90178756]
[1764087028568,0.0004,2898.4,2897.8,10.35268134]
[1764087028935,0.0004,2898.4,2897.8,10.80268134]
[1764087029165,0.0004,2898.4,2898.3,0.182]
[1764087029337,0.0004,2898.4,2897.9,0.632]
[1764087029534,0.0004,2898.4,2898.0,0.45]
[1764087030346,0.0004,2898.4,2897.7,6.90202574]
[1764087030347,0.0659,2898.1,2897.7,6.90202574]
[1764087030733,0.0004,2898.4,2897.7,6.90202574]
[1764087030940,0.0004,2898.4,2897.7,10.35303861]
[1764087031150,0.0004,2898.4,2897.5,10.85925721]
[1764087031362,0.0004,2898.4,2897.8,0.1]
[1764087031572,0.0004,2898.4,2897.9,0.405504]
[1764087031772,0.0004,2898.4,2898.3,1.055504]
[1764087032367,0.0004,2898.4,2898.3,1.505504]
[1764087033378,0.0004,2898.4,2898.3,4.95580245]
[1764087034455,0.0004,2898.4,2898.3,5.05580245]
[1764087034856,0.0004,2898.4,2898.3,5.78139656]
[1764087035668,0.0004,2898.4,2898.3,5.68139656]
[1764087035845,0.0004,2898.4,2898.3,5.23139656]
[1764087036046,0.0004,2898.4,2898.3,5.68139656]
[1764087036456,0.0004,2898.4,2898.3,4.95580245]
[1764087036658,0.0004,2898.4,2898.3,4.10029845]
[1764087036858,0.0004,2898.4,2898.3,3.45029845]
[1764087037295,0.0004,2898.4,2898.1,0.182]
[1764087037497,0.0004,2898.4,2898.1,0.632]
[1764087038090,0.0004,2898.4,2898.0,10.35192612]
[1764087040503,0.0667,2898.1,2897.0,0.45]
[1764087040702,0.0048,2898.0,2897.2,3.45160844]
[1764087041070,0.0048,2898.0,2897.2,6.90321688]
[1764087041071,0.1449,2897.9,2897.2,6.90321688]
[1764087041470,0.1449,2897.9,2897.1,3.63365777]
[1764087041471,0.4826,2897.8,2897.1,0.182]
[1764087042167,0.4826,2897.8,2897.3,0.001]
[1764087043710,0.0667,2897.4,2897.3,0.001]
[1764087044074,0.5451,2897.4,2897.3,0.001]
[1764087044828,0.7661,2897.4,2897.3,0.001]
[1764087045009,1.50720711,2897.4,2897.3,0.001]
[1764087045639,1.50135623,2897.4,2897.3,0.001]
[1764087046463,4.95272642,2897.4,2897.3,0.001]
[1764087047531,6.60219017,2897.4,2897.3,0.001]
[1764087048237,5.67752053,2897.4,2897.3,0.001]
[1764087049035,2.22615034,2897.4,2897.3,0.001]
[1764087049232,1.00664323,2897.4,2897.3,0.001]
[1764087049402,0.221,2897.5,2897.3,0.001]
[1764087050009,0.1449,2897.9,2897.3,0.001]
[1764087050306,0.479,2897.4,2897.3,0.001]
[1764087050497,0.5361,2897.4,2897.3,0.001]
[1764087051336,0.7571,2897.4,2897.3,0.001]
[1764087051536,0.221,2897.4,2897.3,0.001]
[1764087052229,0.6958,2897.4,2897.3,0.001]
[1764087053512,0.221,2897.4,2897.3,0.001]
[1764087054025,0.74027713,2897.7,2897.3,0.4872]
[1764087054331,4.32133536,2897.9,2897.3,0.4872]
[1764087054332,0.221,2897.6,2897.3,0.4872]
[1764087055162,0.221,2897.6,2897.3,0.9486]
[1764087055359,4.86644505,2898.5,2897.5,0.4862]
[1764087055571,0.74067186,2898.4,2897.6,0.4614]
[1764087055729,0.0004,2898.4,2897.7,10.35303861]
[1764087055935,0.221,2898.3,2897.7,10.35303861]
[1764087056253,0.0004,2898.4,2898.3,0.4862]
[1764087056619,0.0004,2898.4,2898.3,0.9476]
[1764087057465,0.0004,2898.4,2898.3,6.3300006]
[1764087057742,0.0004,2898.4,2898.3,10.50589316]
[1764087057945,0.0004,2898.4,2898.3,10.40589316]
[1764087058146,0.0004,2898.4,2898.3,5.52899656]
[1764087058858,0.0004,2898.4,2898.3,4.41569845]
[1764087059058,0.0004,2898.4,2898.3,4.82120245]
[1764087060333,0.002,2898.7,2898.6,0.1]
[1764087060531,0.002,2898.7,2898.6,1.566004]
[1764087060734,0.002,2898.7,2898.6,0.4603]
[1764087060982,0.002,2898.7,2897.7,0.4792]
[1764087060983,0.0634,2898.7,2897.7,0.4792]
[1764087061467,0.5405,2898.7,2897.4,7.12374038]
[1764087061890,0.5405,2898.7,2897.5,0.4792]
[1764087062041,3.44994135,2898.6,2897.6,6.90226394]
[1764087062240,0.221,2898.5,2897.6,10.35339591]
[1764087062439,0.221,2898.5,2897.7,0.4792]
[1764087062681,0.51248449,2898.4,2897.5,3.45119816]
[1764087062862,0.4813,2898.4,2897.5,6.90244923]
[1764087063386,0.4813,2898.4,2897.4,6.90273168]
[1764087063841,0.221,2898.3,2897.4,6.90273168]
[1764087064241,0.221,2898.2,2897.5,0.4792]
[1764087065487,0.221,2898.2,2897.4,3.45136149]
[1764087065782,0.7023,2898.2,2897.3,0.001]
[1764087065938,0.1382,2897.5,2897.3,0.001]
[1764087066343,0.221,2897.5,2897.3,0.001]
[1764087066538,0.1382,2897.8,2897.3,0.001]
[1764087066879,0.94659411,2897.7,2897.3,0.001]
[1764087067046,0.221,2897.7,2897.3,0.001]
[1764087067240,0.1382,2897.8,2897.3,0.001]
[1764087067494,0.221,2898.2,2897.4,0.4792]
[1764087068090,0.221,2898.2,2897.5,6.90250214]
[1764087068286,0.221,2898.2,2897.5,3.45125107]
[1764087068509,0.221,2898.2,2897.5,6.90250214]
[1764087068789,0.221,2898.2,2897.5,10.83295321]
[1764087069332,0.221,2898.2,2897.5,6.90250214]
[1764087070235,0.221,2898.2,2897.3,0.001]
[1764087071634,1.20689411,2898.1,2897.3,0.001]
[1764087071960,0.72559411,2898.1,2897.3,0.001]
[1764087072161,0.72479411,2898.1,2897.3,0.001]
[1764087072451,0.4813,2898.4,2897.4,0.4792]
[1764087072659,0.221,2898.0,2897.4,0.4792]
[1764087072817,0.221,2897.9,2897.4,0.4792]
[1764087073313,0.221,2897.9,2897.8,0.4603]
[1764087074245,3.93314456,2898.7,2897.9,10.35232407]
[1764087074246,0.002,2898.7,2897.9,10.35232407]
[1764087074637,0.002,2898.7,2898.0,0.4792]
[1764087075154,0.002,2898.7,2898.1,0.1955]
[1764087075514,0.002,2898.7,2897.9,10.35232407]
[1764087075714,0.002,2898.4,2897.9,10.35232407]
[1764087076142,0.002,2898.4,2897.8,6.90178756]
[1764087076340,0.002,2898.4,2897.8,10.35268134]
[1764087076545,0.002,2898.4,2897.8,6.90178756]
[1764087076747,0.1382,2897.9,2897.8,3.45089378]
[1764087077627,0.1996,2897.9,2897.4,3.45137019]
[1764087077830,0.1996,2897.9,2897.4,6.90274038]
[1764087078350,0.6606,2897.9,2897.3,0.001]
[1764087079654,0.002,2898.4,2897.8,0.4519]
[1764087079876,0.223,2898.4,2897.8,0.4519]
[1764087080022,0.223,2898.4,2897.8,0.916]
[1764087080354,0.223,2898.4,2897.9,6.90154938]
[1764087082942,0.6875,2898.4,2897.9,6.90154938]
[1764087084039,0.6875,2898.4,2897.3,0.001]
[1764087084040,0.4755,2898.0,2897.5,3.45125107]
[1764087084354,0.4755,2898.0,2897.3,0.001]
[1764087084355,0.2757,2897.4,2897.3,0.001]
[1764087084559,0.1382,2897.4,2897.3,0.001]
[1764087084766,0.2784,2897.4,2897.3,0.001]
[1764087085441,0.6775,2897.4,2897.3,0.001]
[1764087085836,1.42104143,2897.4,2897.3,0.001]
[1764087086254,4.87241162,2897.4,2897.3,0.001]
[1764087086454,1.42104143,2897.4,2897.3,0.001]
[1764087087653,5.59800573,2897.4,2897.3,0.001]
[1764087090858,1.96853554,2897.4,2897.3,0.001]
[1764087091476,1.74753554,2897.4,2897.3,0.001]
[1764087091801,1.46913554,2897.4,2897.3,0.001]
[1764087091974,0.92475659,2897.9,2897.3,0.9281]
[1764087092301,0.0781,2897.4,2897.3,0.001]
[1764087092672,0.74278445,2897.7,2897.3,0.001]
[1764087092673,1.46837856,2897.7,2897.3,0.001]
[1764087092987,0.72559411,2897.7,2897.3,0.001]
[1764087093892,0.8198,2897.8,2897.3,0.001]
[1764087094091,0.221,2897.7,2897.3,0.03551489]
[1764087094298,0.221,2897.7,2897.4,0.0345137]
[1764087094592,0.221,2897.7,2897.6,0.463]
[1764087094752,0.221,2897.7,2897.6,4.37823197]
[1764087094954,0.221,2898.1,2897.6,11.28049591]
[1764087095364,0.221,2898.1,2897.7,0.4641]
[1764087096362,0.002,2898.4,2897.7,0.4641]
[1764087096562,0.221,2898.2,2897.7,0.4641]
[1764087096773,0.221,2898.2,2897.8,6.90178756]
[1764087097959,0.221,2898.2,2897.8,7.36588756]
[1764087098182,0.221,2898.2,2897.8,6.90178756]
[1764087098961,0.221,2898.2,2897.6,6.90224344]
[1764087099296,0.221,2898.2,2897.6,10.35337541]
[1764087099459,0.221,2898.2,2897.7,0.4641]
[1764087099660,0.002,2898.4,2898.1,0.6568]
[1764087099863,0.221,2898.3,2898.1,0.6568]
[1764087100162,0.221,2898.3,2898.1,1.1209]
[1764087100962,0.221,2898.3,2898.1,4.57134786]
[1764087101166,0.221,2898.3,2898.1,4.10724786]
[1764087101496,0.002,2898.4,2898.1,4.10724786]
[1764087101793,0.221,2898.2,2898.1,4.10724786]
[1764087101979,0.221,2898.2,2898.1,4.57134786]
[1764087102399,0.221,2898.2,2898.1,4.10724786]
[1764087102595,0.002,2898.4,2898.1,4.57134786]
[1764087102801,0.002,2898.4,2898.3,0.463]
[1764087102802,0.223,2898.4,2898.3,0.463]
[1764087102977,0.223,2898.4,2898.3,4.37739845]
[1764087103299,0.223,2898.4,2898.3,3.91329845]
[1764087104104,0.223,2898.4,2898.3,0.463]
[1764087104304,0.223,2898.4,2898.3,0.9271]
[1764087105004,0.223,2898.4,2898.1,0.1938]
[1764087105005,0.223,2898.4,2898.1,3.6442483]
[1764087105202,0.223,2898.4,2898.1,3.4504483]
[1764087105403,0.223,2898.4,2898.1,6.90098485]
[1764087105603,0.223,2898.4,2898.2,0.4641]
[1764087105792,0.223,2898.4,2898.3,0.463]
[1764087106581,0.002,2898.4,2898.3,0.9271]
[1764087107077,0.002,2898.4,2898.3,4.37739845]
[1764087108077,0.002,2898.4,2898.3,3.45029845]
[1764087108277,0.002,2898.4,2898.3,4.37739845]
[1764087109139,0.002,2898.4,2898.3,3.91329845]
[1764087109332,0.002,2898.4,2898.3,3.45029845]
[1764087110636,0.0867,2898.4,2898.1,3.45049034]
[1764087110933,0.002,2898.4,2898.1,6.90102689]
[1764087111139,0.002,2898.4,2898.3,0.4878]
[1764087111347,0.002,2898.4,2898.3,0.893304]
[1764087111515,0.002,2898.4,2898.3,1.378804]
[1764087111716,0.002,2898.4,2898.3,1.478804]
[1764087113127,0.002,2898.4,2898.3,5.04910245]
[1764087113402,0.002,2898.4,2898.3,5.87469656]
[1764087115545,0.002,2898.4,2898.3,4.42359845]
[1764087116623,0.002,2898.4,2898.3,4.40777845]
[1764087119230,0.002,2898.4,2898.3,3.45029845]
[1764087119433,0.002,2898.4,2898.2,6.90082476]
[1764087120205,0.0012,2898.4,2898.2,6.90082476]
[1764087120404,0.0012,2898.4,2898.3,0.4881]
[1764087120811,0.0012,2898.4,2898.3,5.96333442]
[1764087121038,0.0012,2898.4,2898.3,6.06333442]
[1764087121340,0.6943,2899.5,2899.1,3.44934634]
[1764087121341,0.002,2899.5,2899.1,3.44934634]
[1764087121539,0.002,2899.8,2899.5,0.405504]
[1764087121755,0.002,2900.7,2900.4,0.405504]
[1764087121908,0.002,2900.7,2900.4,1.686304]
[1764087122941,0.002,2900.7,2900.6,0.505504]
[1764087123146,0.002,2901.0,2900.7,0.893604]
[1764087123343,0.1779,2902.3,2901.0,14.91944695]
[1764087123643,0.1779,2902.5,2901.8,0.1]
[1764087123875,0.22,2902.8,2901.9,0.4986]
[1764087124076,0.22,2902.8,2902.0,0.405504]
[1764087124231,0.1453,2903.0,2902.0,5.19663442]
[1764087124434,0.1453,2903.0,2902.1,0.1941]
[1764087124648,0.4723,2902.9,2901.6,0.904104]
[1764087124846,0.50348449,2902.9,2901.8,0.405504]
[1764087125035,0.50348449,2902.9,2901.5,4.76523042]
[1764087125036,1.19789411,2902.9,2901.5,0.1941]
[1764087125256,1.19789411,2902.9,2901.3,0.405504]
[1764087125574,7.03473258,2903.0,2901.5,0.405504]
[1764087125575,0.4723,2902.8,2901.5,0.405504]
[1764087125869,0.4723,2902.8,2901.4,6.89322396]
[1764087126073,0.4723,2902.8,2901.4,10.33983594]
[1764087126239,0.4723,2902.8,2901.5,0.904104]
[1764087126433,0.4723,2902.8,2901.7,0.405504]
[1764087126843,0.4723,2902.8,2901.7,0.904104]
[1764087127269,0.4723,2902.8,2901.6,0.405504]
[1764087127512,0.4723,2902.8,2901.7,6.89251128]
[1764087127681,0.4723,2902.8,2901.7,10.33876692]
[1764087127968,0.002,2902.5,2901.7,7.39111128]
[1764087128334,0.002,2902.5,2901.7,3.44625564]
[1764087128536,0.4743,2902.5,2901.7,6.89251128]
[1764087128845,0.002,2902.5,2901.7,10.33876692]
[1764087129052,0.002,2902.5,2901.7,6.89251128]
[1764087129258,0.2212,2901.8,2901.2,6.89369914]
[1764087129457,0.0022,2901.6,2900.7,3.44744372]
[1764087129663,0.72559411,2902.2,2900.7,6.89488744]
[1764087129862,0.4723,2902.1,2900.8,0.5986]
[1764087130063,0.03118449,2902.0,2900.7,6.89488744]
[1764087130269,0.03118449,2902.0,2900.7,3.44744372]
[1764087130546,0.6181,2901.9,2900.7,3.44744372]
[1764087130943,0.50348449,2901.8,2900.7,3.44744372]
[1764087131150,0.50348449,2901.8,2900.7,6.89488744]
[1764087131593,0.50348449,2901.8,2900.6,6.89512514]
[1764087131594,0.4723,2901.8,2900.6,6.89512514]
[1764087131796,0.72559411,2901.7,2900.6,10.34268771]
[1764087132088,0.22,2901.6,2900.6,6.89512514]
[1764087132398,0.1458,2901.9,2900.7,0.93857843]
[1764087132613,0.002,2902.5,2900.7,0.93857843]
[1764087132614,0.002,2902.5,2901.0,0.405504]
[1764087132904,0.222,2902.5,2901.2,0.505504]
[1764087133072,0.222,2902.5,2901.4,0.405504]
[1764087133267,0.222,2902.5,2901.7,0.405504]
[1764087133606,0.222,2902.5,2901.8,10.33841064]
[1764087133956,0.222,2902.5,2901.8,6.89227376]
[1764087134381,0.4723,2902.4,2901.8,6.89227376]
[1764087134860,0.1458,2901.9,2901.8,3.44613688]
[1764087135065,0.1458,2901.9,2901.6,6.89270713]
[1764087135459,0.1458,2901.9,2901.4,6.89322396]
[1764087135677,0.1458,2901.9,2901.5,0.72559411]
[1764087136174,0.1458,2901.9,2901.4,6.89322396]
[1764087136386,0.222,2902.5,2901.8,0.4881]
[1764087136387,0.002,2902.5,2901.8,0.4881]
[1764087137619,0.002,2902.5,2901.9,10.33805436]
[1764087137976,0.002,2902.5,2902.0,0.5986]
[1764087138277,0.002,2902.5,2902.1,0.405504]
[1764087138701,0.002,2902.5,2902.1,0.4986]
[1764087139012,0.002,2902.5,2902.0,0.405504]
[1764087139507,0.002,2902.5,2901.2,3.94544957]
[1764087139508,0.0769,2902.1,2901.2,3.94544957]
[1764087139715,3.91966632,2902.5,2901.5,0.72559411]
[1764087140012,1.19789411,2902.4,2901.2,7.39228846]
[1764087140316,1.2290786,2902.4,2901.2,3.44683889]
[1764087140607,0.4688,2902.3,2901.1,6.89391006]
[1764087140783,0.03118449,2902.2,2900.7,0.4935]
[1764087140985,2.0735,2902.1,2900.6,6.89512514]
[1764087141186,0.4688,2902.0,2900.6,6.89512514]
[1764087141388,0.22,2901.9,2900.7,0.405504]
[1764087141715,3.44613688,2901.8,2900.8,6.89464974]
[1764087141897,0.4688,2901.8,2900.8,6.89464974]
[1764087142099,0.1457,2901.9,2901.0,0.405504]
[1764087142314,0.1457,2901.9,2901.0,0.505504]
[1764087142550,0.6145,2901.9,2901.0,0.405504]
[1764087143181,0.6145,2901.9,2901.1,0.1985]
[1764087143381,0.1457,2901.9,2901.1,0.1985]
[1764087143917,0.1457,2901.9,2901.2,6.89369914]
[1764087144115,0.4688,2901.8,2901.2,3.44684957]
[1764087144315,0.468,2901.8,2901.2,3.44684957]
[1764087144692,0.1457,2901.9,2901.2,6.89369914]
[1764087144896,0.1457,2901.9,2901.0,0.001]
[1764087144897,3.44613688,2901.8,2901.0,0.001]
[1764087145216,6.89227376,2901.8,2901.0,0.001]
[1764087145391,3.59373501,2901.9,2901.0,6.89515874]
[1764087145596,7.03983473,2901.9,2901.0,6.89515874]
[1764087145796,7.03983473,2901.9,2901.1,0.1985]
[1764087145797,0.1477,2901.9,2901.1,0.1985]
[1764087146124,3.59371812,2901.9,2901.0,0.001]
[1764087146329,0.1477,2901.9,2901.1,0.1985]
[1764087146531,0.6165,2901.9,2901.1,0.1985]
[1764087146718,0.4688,2901.8,2901.0,0.001]
[1764087147907,3.44625564,2901.7,2901.0,0.001]
[1764087148619,0.0795,2901.1,2901.0,0.001]
[1764087148931,0.22,2901.4,2901.0,0.001]
[1764087149299,0.6888,2901.4,2901.0,0.001]
[1764087150133,0.22,2901.4,2901.0,0.001]
[1764087150931,0.6888,2901.4,2901.0,0.001]
[1764087151315,0.0795,2901.1,2901.0,0.001]
[1764087153329,0.74226084,2901.3,2901.0,0.001]
[1764087153506,0.4688,2901.3,2901.0,0.001]
[1764087153708,1.21089948,2901.3,2901.0,0.001]
[1764087154203,0.0795,2901.1,2901.0,0.001]
[1764087154638,0.5444,2901.1,2901.0,0.001]
[1764087155433,2.21125607,2901.1,2901.0,0.001]
[1764087156329,5.45906198,2901.1,2901.0,0.001]
[1764087159541,5.45906198,2901.1,2900.7,0.001]
[1764087159542,0.72559411,2900.9,2900.7,0.001]
[1764087159747,1.33240438,2900.8,2900.7,0.001]
[1764087159945,1.61579938,2900.8,2900.7,0.001]
[1764087160454,3.26814115,2900.8,2900.7,0.001]
[1764087160942,5.78871836,2900.8,2900.7,0.001]
[1764087162518,4.38856511,2900.7,2900.4,0.001]
[1764087162753,1.13109811,2900.2,2898.4,0.4935]
[1764087162918,11.27162477,2899.8,2898.4,3.94362316]
[1764087163126,1.68739349,2899.7,2898.3,3.64877178]
[1764087163428,1.68739349,2899.7,2898.1,0.4935]
[1764087163429,0.74179938,2899.6,2898.1,0.4935]
[1764087163616,0.4688,2899.5,2898.1,3.94402594]
[1764087164150,1.3948837,2899.5,2898.1,0.4935]
[1764087164352,0.72559411,2899.2,2898.0,0.001]
[1764087164520,0.96179938,2899.1,2898.0,3.45157441]
[1764087164854,0.22,2899.1,2898.0,3.45164775]
[1764087165075,0.72559411,2898.9,2898.2,3.4504175]
[1764087167158,3.44970332,2898.8,2898.2,3.4504175]
[1764087167341,3.44970332,2898.8,2898.1,0.4935]
[1764087167342,0.22,2898.7,2898.1,3.94402816]
[1764087167540,0.22,2898.7,2898.1,7.39456471]
[1764087167850,0.22,2898.7,2898.1,3.94402816]
[1764087168239,0.2192,2898.7,2898.1,3.94402816]
[1764087168438,0.2192,2898.7,2898.1,7.39456471]
[1764087168759,0.2192,2898.7,2898.1,3.94402816]
[1764087169258,0.2192,2898.7,2898.1,7.39456471]
[1764087169459,0.4688,2899.5,2898.6,0.4533]
[1764087169664,0.76869688,2899.6,2898.6,0.4533]
[1764087169827,1.0893837,2899.9,2898.7,0.4935]
[1764087169828,0.22,2899.5,2898.7,0.4935]
[1764087170028,0.22,2899.5,2898.3,0.4669]
[1764087170229,0.6713,2899.5,2898.4,0.405504]
[1764087170631,0.03118449,2899.4,2898.4,0.4669]
[1764087170838,0.70248449,2899.5,2898.4,0.4669]
[1764087171140,0.4513,2899.4,2898.4,0.4669]
[1764087171356,6.8982168,2899.3,2898.5,3.45006037]
[1764087171559,7.3495168,2899.3,2898.5,3.45006037]
[1764087171764,7.3495168,2899.3,2898.0,0.001]
[1764087171765,0.0978,2898.6,2898.1,3.45053655]
[1764087171948,0.22,2898.5,2898.1,3.45053655]
[1764087172360,0.22,2898.5,2898.1,6.9010731]
[1764087172531,0.22,2898.5,2898.1,7.3679731]
[1764087173256,3.44856939,2899.8,2898.0,0.001]
[1764087173257,0.72559411,2899.1,2898.5,6.90012074]
[1764087173449,0.22,2898.7,2898.5,6.90012074]
[1764087173959,0.22,2898.7,2898.6,0.9196]
[1764087175079,0.6912,2898.7,2898.0,3.45159565]
[1764087175356,0.6912,2898.7,2898.0,6.90225127]
[1764087175357,0.22,2898.7,2898.0,6.90225127]
[1764087175656,0.22,2898.7,2898.0,7.36915127]
[1764087177157,0.22,2898.7,2898.1,0.4669]
[1764087177458,0.22,2898.7,2898.2,3.4504175]
[1764087177759,3.66983829,2898.7,2898.2,3.4504175]
[1764087177937,0.4513,2898.6,2898.2,3.4504175]
[1764087178130,0.4513,2898.6,2898.1,3.45050916]
[1764087178533,0.4513,2898.6,2898.0,0.001]
[1764087178733,0.0978,2898.1,2898.0,0.001]
[1764087179031,0.3178,2898.1,2898.0,0.001]
[1764087179431,3.76833655,2898.1,2898.0,0.001]
[1764087179674,0.3178,2898.1,2898.0,0.001]
[1764087180472,3.44985964,2898.7,2898.0,0.001]
[1764087180473,0.4764,2898.8,2898.0,0.001]
[1764087180669,0.25118449,2898.7,2898.0,0.001]
[1764087180867,3.742691,2898.1,2898.0,0.001]
[1764087181073,10.351285,2897.9,2897.7,0.001]